[Event "44th Chess Olympiad Open 2022"]
[Site "Chennai"]
[Date "2022.08.09"]
[Round "11.28"]
[White "Boudriga, Mohamed Ali"]
[Black "Delgado Ramirez, Neuris"]
[Result "1-0"]
[ECO "A13"]
[WhiteElo "2308"]
[BlackElo "2614"]
[Annotator "TA"]
[PlyCount "91"]
[EventDate "2022.07.29"]
[EventType "team-tourn"]
[EventCountry "IND"]
[SourceTitle "playchess.com"]
[Source "ChessBase"]
[SourceQuality "1"]
[WhiteTeam "Tunisia"]
[BlackTeam "Paraguay"]
[WhiteTeamCountry "TUN"]
[BlackTeamCountry "PAR"]
[TimeControl "40/5400+30:1800+30"]

{[%evp 10,91,27,28,52,43,62,51,74,71,75,58,68,39,42,19,26,20,22,-4,0,-11,36,41,40,29,26,8,6,34,28,15,27,22,85,86,86,62,81,83,91,62,84,94,125,79,79,79,159,71,166,183,170,178,213,217,222,217,218,197,226,222,239,246,233,150,135,137,136,112,118,10,10,15,14,11,16,0,0,0,0,0,681,658]} 1. Nf3 {[%emt 0:01:34]} Nf6 {[%emt 0:00:23]} 2. c4 {[%emt 0:01:03]} e6 {[%emt 0:00:25]} 3. g3 {[%emt 0:00:15]} a6 {[%emt 0:01:39]} 4. Bg2 {[%emt 0:01:58]} b5 {[%emt 0:00:00]} 5. b3 {[%emt 0:01:25]} Bb7 {[%emt 0:00:52]} 6. Nc3 {[%emt 0:03:48]} bxc4 {[%emt 0:04:37] A13: English Opening: 1...e6.} 7. bxc4 {[%emt 0:11:52]} c5 {[%emt 0:00:23]} 8. Rb1 {[%emt 0:02:20]} Bc6 {[%emt 0:00:05] White is slightly better.} 9. O-O {[%emt 0:01:37]} Be7 {[%emt 0:00:10]} 10. Qc2 {[%emt 0:07:19]} O-O {[%emt 0:03:02] [#]} 11. e3 $146 {[%emt 0:12:16]} ({Predecessor:} 11. e4 Qc7 12. d4 cxd4 13. Nxd4 Rc8 14. Rd1 Bf8 15. h3 Ra7 16. Nb3 d6 17. Be3 {1-0 (32) Ribli,Z (2584)-Fedorchuk,S (2599) Germany 2006}) 11... Ra7 {[%emt 0:01:55]} 12. Rd1 {[%emt 0:01:48]} Rc7 {[%emt 0:00:56]} 13. d3 {[%emt 0:06:05]} d6 {[%emt 0:01:40]} 14. e4 {[%emt 0:08:03]} Nfd7 {[%emt 0:01:09]} 15. Bf4 {[%emt 0:13:47]} g5 {[%emt 0:12:15]} (15... Ba8 $11 {should be considered.}) 16. Be3 $14 {[%emt 0:00:00]} Ba8 {[%emt 0:00:16]} 17. Qe2 {[%emt 0:00:00]} Nc6 {[%emt 0:00:49]} 18. h3 {[%emt 0:00:00]} Bf6 {[%emt 0:01:44]} 19. Qd2 {[%emt 0:00:00][%cal Re3g5]} h6 {[%emt 0:02:24]} 20. Ne2 Kh8 {[%emt 0:00:57]} 21. Nh2 Bg7 {[%emt 0:02:08]} (21... Nde5 $11 {remains equal.}) 22. f4 $16 {[%cal Rf4g5]} f6 {[%emt 0:07:29]} 23. Rf1 {[%emt 0:12:42]} Qe7 {[%emt 0:03:26]} 24. h4 {[%emt 0:03:56][%cal Rh4g5]} gxh4 {[%emt 0:00:00]} 25. Nf3 {[%emt 0:00:30]} f5 {[%emt 0:00:00]} 26. Nxh4 {[%emt 0:00:30]} Qf6 {[%emt 0:06:25] Inhibits Ng6+.} 27. exf5 {[%emt 0:02:44]} (27. Bf2 $142) 27... exf5 {[%emt 0:00:00]} 28. Rfe1 {[%emt 0:01:08][%cal Bf1e1,Be1b1,Bb1b6][%mdl 32] Black must now prevent Bf2.} Rg8 {[#]} (28... Ne7 $142) 29. Kh2 {[%emt 0:08:51]} ({White should try} 29. Bf2 $1) 29... Rcc8 {[%emt 0:00:00]} (29... Ne7 $16 {was called for.}) 30. Bf2 $18 Rb8 {[%emt 0:06:22]} 31. Ng1 {[%emt 0:00:00]} Rxb1 {[%emt 0:00:18]} 32. Rxb1 Ne7 {[%emt 0:00:08]} 33. Bxa8 Rxa8 {[%emt 0:00:53]} 34. Ngf3 {[%emt 0:00:57]} Ng6 {[%emt 0:04:04]} 35. Qe2 {Inhibits Re8.} Ndf8 {[%emt 0:00:38]} 36. Nxg6+ {[%emt 0:01:11]} Nxg6 37. Rb6 {[%emt 0:01:47]} Qd8 {[%emt 0:01:16]} 38. Rb7 {[%emt 0:01:31]} Qc8 {[%emt 0:00:18] Prevents Qe6.} 39. Rb1 {[%emt 0:00:00] 0x0.001f25c62456dp-1022s more active pieces.} Qc6 {[%emt 0:01:09]} 40. Ng5 {[%emt 0:09:12]} hxg5 $11 {[%emt 0:08:58]} 41. Qh5+ {[%emt 0:00:00]} Kg8 {[%emt 0:00:46] Strongly threatening ...Kf7.} 42. Qxg6 {[%emt 0:00:00]} Qf3 {[%emt 0:02:14][%csl LRd3,LRf2,LRf4]} 43. Rf1 {[%emt 0:08:04] The board is on fire.} gxf4 {[%emt 0:12:04]} 44. Qe6+ {[%emt 0:02:45]} Kh8 {[%emt 0:00:48] And now ...fxg3+ would win.} 45. Qxf5 {[%emt 0:02:22]} Rf8 $2 {[%emt 0:03:49][%mdl 8192] [#]} (45... Be5 $11 46. g4 Ra7) 46. Qxf8+ $3 {[%emt 0:00:07][%mdl 512] Weighted Error Value: White=0.17 (very precise) /Black=0.30} 1-0

[Event "44th Chess Olympiad Open 2022"]
[Site "Chennai"]
[Date "2022.08.09"]
[Round "11.28"]
[White "Bouzidi, Ahmed"]
[Black "Jodorcovsky Werjivker, Paulo"]
[Result "1-0"]
[ECO "B22"]
[WhiteElo "2148"]
[BlackElo "2213"]
[Annotator "RC"]
[PlyCount "109"]
[EventDate "2022.07.29"]
[EventType "team-tourn"]
[EventCountry "IND"]
[SourceTitle "playchess.com"]
[Source "ChessBase"]
[SourceQuality "1"]
[WhiteTeam "Tunisia"]
[BlackTeam "Paraguay"]
[WhiteTeamCountry "TUN"]
[BlackTeamCountry "PAR"]
[TimeControl "40/5400+30:1800+30"]

1. e4 {[%emt 0:00:07]} c5 {[%emt 0:00:12]} 2. c3 {[%emt 0:00:11]} Nf6 {[%emt 0:00:10]} 3. e5 {[%emt 0:00:04]} Nd5 {[%emt 0:00:06]} 4. d4 {[%emt 0:01:01]} cxd4 {[%emt 0:00:13]} 5. Nf3 {[%emt 0:00:04]} Nc6 {[%emt 0:01:28]} 6. Bc4 {[%emt 0:00:49]} Nb6 {[%emt 0:00:18]} 7. Bb3 {[%emt 0:00:04]} d6 {[%emt 0:00:17]} 8. exd6 {[%emt 0:09:56]} Qxd6 {[%emt 0:00:23]} 9. O-O {[%emt 0:01:04]} Be6 {[%emt 0:00:29]} 10. Na3 {[%emt 0:00:22]} a6 {[%emt 0:00:53]} 11. Bxe6 {[%emt 0:01:14]} Qxe6 {[%emt 0:00:11]} 12. Nxd4 {[%emt 0:01:36]} Nxd4 {[%emt 0:00:06]} 13. Qxd4 {[%emt 0:00:08]} Rd8 {[%emt 0:00:09]} 14. Qh4 {[%emt 0:00:44]} Qc8 {[%emt 0:03:23]} 15. Be3 {[%emt 0:08:58]} Nd5 {[%emt 0:00:58]} 16. Bd4 {[%emt 0:00:32]} e6 {[%emt 0:07:09]} 17. Qg4 {[%emt 0:11:04]} h5 {[%emt 0:07:27]} 18. Qg5 {[%emt 0:06:40]} Rh6 {[%emt 0:01:44]} 19. f4 {[%emt 0:03:48]} Qc6 {[%emt 0:04:30]} 20. f5 {[%emt 0:14:58]} f6 {[%emt 0:02:08]} 21. Qh4 {[%emt 0:00:24]} e5 {[%emt 0:00:36]} 22. Rae1 {[%emt 0:02:01]} Bxa3 {[%emt 0:04:11]} 23. bxa3 {[%emt 0:00:30]} Kd7 {[%emt 0:12:18]} 24. Bf2 {[%emt 0:13:36]} Kc8 {[%emt 0:00:24]} 25. Bg3 {[%emt 0:04:03]} Rhh8 {[%emt 0:01:01]} 26. c4 {[%emt 0:01:28]} Ne7 {[%emt 0:03:49]} 27. Bxe5 {[%emt 0:03:03]} Qc5+ {[%emt 0:00:55]} 28. Kh1 {[%emt 0:05:32]} fxe5 {[%emt 0:00:16]} 29. Qg3 {[%emt 0:00:33]} Nc6 {[%emt 0:01:19]} 30. Qxg7 {[%emt 0:02:44]} Rhg8 {[%emt 0:04:57]} 31. Qf7 {[%emt 0:00:00]} Nd4 {[%emt 0:07:47]} 32. f6 {[%emt 0:01:49]} h4 {[%emt 0:01:35]} 33. Qh5 {[%emt 0:00:51]} Qc6 {[%emt 0:01:16]} 34. Rf2 {[%emt 0:00:15]} Rh8 {[%emt 0:01:32]} 35. Qg4+ {[%emt 0:02:29]} Kb8 {[%emt 0:00:19]} 36. h3 {[%emt 0:00:27]} Qxc4 {[%emt 0:02:19]} 37. Rxe5 {[%emt 0:01:23]} Qc1+ {[%emt 0:01:02]} 38. Kh2 {[%emt 0:01:21]} Nc6 {[%emt 0:05:56]} 39. Re4 {[%emt 0:00:22]} Qxa3 {[%emt 0:01:20]} 40. f7 {[%emt 0:01:30]} Ka8 {[%emt 0:03:15]} 41. Qg6 {[%emt 0:01:50]} Qc5 {[%emt 0:36:51]} 42. Rf5 {[%emt 0:05:22]} Qf8 {[%emt 0:00:00]} 43. Qf6 {[%emt 0:03:05]} Ka7 {[%emt 0:00:00]} 44. Rxh4 {[%emt 0:00:32]} Rxh4 {[%emt 0:00:00]} 45. Qxh4 {[%emt 0:00:06]} Rd7 {[%emt 0:00:00]} 46. Qf2+ {[%emt 0:02:49]} b6 {[%emt 0:00:00]} 47. Rf6 {[%emt 0:01:41]} Nd4 {[%emt 0:01:27]} 48. a4 {[%emt 0:02:10]} a5 {[%emt 0:00:07]} 49. Qb2 {[%emt 0:01:49]} Rd6 {[%emt 0:06:29]} 50. Qa3 {[%emt 0:00:43]} Rd8 {[%emt 0:00:37]} 51. Qg3 {[%emt 0:00:16]} Qc5 {[%emt 0:00:47]} 52. f8=Q {[%emt 0:01:39]} Rxf8 {[%emt 0:00:44]} 53. Qg7+ {[%emt 0:00:10]} Ka6 {[%emt 0:00:38]} 54. Qxf8 {[%emt 0:00:09]} Qc7+ {[%emt 0:02:06]} 55. Qd6 {[%emt 0:00:56]} 1-0

[Event "44th Chess Olympiad Open 2022"]
[Site "Chennai"]
[Date "2022.08.09"]
[Round "11.29"]
[White "Meier, Georg"]
[Black "Othman, A. Moussa"]
[Result "1-0"]
[ECO "E16"]
[WhiteElo "2613"]
[BlackElo "2229"]
[Annotator "TA"]
[PlyCount "49"]
[EventDate "2022.07.29"]
[EventType "team-tourn"]
[EventCountry "IND"]
[SourceTitle "playchess.com"]
[Source "ChessBase"]
[SourceQuality "1"]
[WhiteTeam "Uruguay"]
[BlackTeam "United Arab Emirates"]
[WhiteTeamCountry "URU"]
[BlackTeamCountry "UAE"]
[TimeControl "40/5400+30:1800+30"]

{[%evp 15,49,31,46,38,37,32,37,37,23,23,37,23,38,22,22,12,12,14,11,0,24,14,22,13,79,86,86,73,99,97,101,105,101,63,103,81]} 1. d4 {[%emt 0:00:04]} Nf6 {[%emt 0:00:10]} 2. Nf3 {[%emt 0:00:08]} e6 {[%emt 0:01:16]} 3. g3 {[%emt 0:00:34]} b6 {[%emt 0:00:07]} 4. Bg2 {[%emt 0:00:09]} Bb7 {[%emt 0:00:06]} 5. c4 {[%emt 0:00:14]} Bb4+ {[%emt 0:00:19]} 6. Bd2 {[%emt 0:00:08]} Qe7 {[%emt 0:00:17]} 7. O-O {[%emt 0:00:31]} Bxd2 {[%emt 0:00:22]} 8. Qxd2 {[%emt 0:04:56]} d6 {[%emt 0:00:27]} 9. Qg5 $5 {[%emt 0:14:54][%mdl 4] Exploring less charted territory. E16: Queen's Indian: 4 g3 Bb7 5 Bg2 Bb4+.} O-O {[%emt 0:03:40]} 10. Nc3 {[%emt 0:00:06][%cal Oe2e4]} Re8 {[%emt 0:00:25] [#]} 11. d5 $146 {[%emt 0:06:20] White is slightly better.} ({Predecessor:} 11. Rfe1 Nbd7 12. e4 e5 13. Rad1 h6 14. Qd2 a5 15. b3 c6 16. Nh4 Rad8 17. Nf5 {1-0 (37) Georgescu,T (2474)-Cimpoiasu,D (1940) Targu Mures 2014}) 11... e5 {[%emt 0:15:44]} 12. e4 {[%emt 0:04:45]} a5 {[%emt 0:04:19]} 13. Qe3 {[%emt 0:02:28]} Nbd7 {[%emt 0:07:00]} 14. Ne1 {[%emt 0:00:08][%cal Bf3e1,Be1c2,Bc2a3,Ba3b5][%mdl 32]} Nc5 {[%emt 0:01:22]} 15. Nc2 {[%emt 0:00:06]} Bc8 {[%emt 0:13:29]} 16. Qd2 {[%emt 0:00:23]} Bd7 {[%emt 0:04:38]} 17. b3 {[%emt 0:01:49]} Rad8 {[%emt 0:18:58]} 18. Rad1 {[%emt 0:12:08]} Kh8 {[%emt 0:09:13]} 19. Na3 {[%emt 0:00:42]} c6 {[%emt 0:01:47]} (19... h5 $11) 20. dxc6 $16 {[%emt 0:00:58]} Bxc6 {[%emt 0:00:03][%cal Rc5e4]} 21. Qe3 {[%emt 0:04:25]} Qb7 {[%emt 0:02:53][%cal Rf6e4]} 22. f3 {[%emt 0:03:05]} Rf8 {[%emt 0:04:12]} 23. Nab5 {[%emt 0:05:27]} Ne8 {[%emt 0:06:50]} 24. Bh3 {[%emt 0:00:14] White is more active.} Qe7 {[%emt 0:00:53]} 25. Rd2 {[%emt 0:01:22] Weighted Error Value: White=0.07 (flawless) /Black=0.12 (very precise)} 1-0

[Event "44th Chess Olympiad Open 2022"]
[Site "Chennai"]
[Date "2022.08.09"]
[Round "11.29"]
[White "Diaz Hollemaert, Nahuel"]
[Black "Sultan, Ibrahim"]
[Result "0-1"]
[ECO "D02"]
[WhiteElo "2425"]
[BlackElo "2108"]
[Annotator "RC"]
[PlyCount "100"]
[EventDate "2022.07.29"]
[EventType "team-tourn"]
[EventCountry "IND"]
[SourceTitle "playchess.com"]
[Source "ChessBase"]
[SourceQuality "1"]
[WhiteTeam "Uruguay"]
[BlackTeam "United Arab Emirates"]
[WhiteTeamCountry "URU"]
[BlackTeamCountry "UAE"]
[TimeControl "40/5400+30:1800+30"]

1. Nf3 {[%emt 0:00:04]} d5 {[%emt 0:00:25]} 2. b3 {[%emt 0:03:40]} Nf6 {[%emt 0:00:15]} 3. Bb2 {[%emt 0:00:05]} c5 {[%emt 0:00:08]} 4. e3 {[%emt 0:00:18]} e6 {[%emt 0:01:48]} 5. g3 {[%emt 0:13:58]} Nc6 {[%emt 0:01:27]} 6. Bg2 {[%emt 0:00:23]} Be7 {[%emt 0:00:04]} 7. O-O {[%emt 0:00:24]} O-O {[%emt 0:00:05]} 8. d4 {[%emt 0:02:12]} b6 {[%emt 0:05:53]} 9. Qe2 {[%emt 0:11:07]} Bb7 {[%emt 0:11:24]} 10. Rd1 {[%emt 0:04:36]} c4 {[%emt 0:10:41]} 11. Nc3 {[%emt 0:15:30]} Qc8 {[%emt 0:12:29]} 12. Ne5 {[%emt 0:16:14]} Na5 {[%emt 0:15:02]} 13. e4 {[%emt 0:09:29]} Re8 {[%emt 0:04:47]} 14. f3 {[%emt 0:08:18]} Ba6 {[%emt 0:02:46]} 15. Qf2 {[%emt 0:02:53]} b5 {[%emt 0:01:57]} 16. Ne2 {[%emt 0:00:39]} Bb7 {[%emt 0:00:15]} 17. bxc4 {[%emt 0:01:11]} Nxc4 {[%emt 0:00:22]} 18. Nxc4 {[%emt 0:00:41]} Qxc4 {[%emt 0:00:16]} 19. e5 {[%emt 0:02:11]} Nd7 {[%emt 0:00:04]} 20. Nf4 {[%emt 0:00:45]} Rac8 {[%emt 0:01:45]} 21. c3 {[%emt 0:01:56]} Qa4 {[%emt 0:01:27]} 22. Bf1 {[%emt 0:01:14]} Rc7 {[%emt 0:00:51]} 23. Bd3 {[%emt 0:01:29]} Qa5 {[%emt 0:03:06]} 24. Qe2 {[%emt 0:00:28]} a6 {[%emt 0:01:18]} 25. Bc2 {[%emt 0:01:22]} Nf8 {[%emt 0:00:26]} 26. a4 {[%emt 0:00:42]} b4 {[%emt 0:00:18]} 27. cxb4 {[%emt 0:00:17]} Bxb4 {[%emt 0:00:08]} 28. Nd3 {[%emt 0:00:18]} Be7 {[%emt 0:02:34]} 29. Rdc1 {[%emt 0:00:52]} Rec8 {[%emt 0:00:28]} 30. Bb3 {[%emt 0:00:24]} Qb6 {[%emt 0:01:09]} 31. Qd1 {[%emt 0:00:20]} a5 {[%emt 0:00:51]} 32. Rxc7 {[%emt 0:00:31]} Rxc7 {[%emt 0:00:09]} 33. Rc1 {[%emt 0:00:10]} Rxc1 {[%emt 0:01:03]} 34. Nxc1 {[%emt 0:00:02]} Ba6 {[%emt 0:00:27]} 35. Bc3 {[%emt 0:01:10]} Nd7 {[%emt 0:01:36]} 36. f4 {[%emt 0:00:49]} Ba3 {[%emt 0:00:34]} 37. Bc2 {[%emt 0:00:44]} Qc7 {[%emt 0:00:28]} 38. Na2 {[%emt 0:00:53]} Bc4 {[%emt 0:09:59]} 39. Bb3 {[%emt 0:00:28]} Qb6 {[%emt 0:00:12]} 40. Bxc4 {[%emt 0:00:58]} dxc4 {[%emt 0:00:04]} 41. Qe2 {[%emt 0:15:51]} Qb3 {[%emt 0:02:13]} 42. d5 {[%emt 0:08:47]} exd5 {[%emt 0:00:48]} 43. e6 {[%emt 0:00:13]} Qb6+ {[%emt 0:00:09]} 44. Kg2 {[%emt 0:02:34]} Qxe6 {[%emt 0:00:05]} 45. Qf3 {[%emt 0:00:43]} Nc5 {[%emt 0:17:13]} 46. Bxa5 {[%emt 0:00:54]} Bb2 {[%emt 0:05:21]} 47. Bc3 {[%emt 0:02:17]} Nd3 {[%emt 0:00:41]} 48. f5 {[%emt 0:00:29]} Qc6 {[%emt 0:04:10]} 49. Kh3 {[%emt 0:02:35]} Bxc3 {[%emt 0:00:23]} 50. Nxc3 {[%emt 0:00:19]} Qh6+ {[%emt 0:00:05]} 0-1

[Event "44th Chess Olympiad Open 2022"]
[Site "Chennai"]
[Date "2022.08.09"]
[Round "11.29"]
[White "Al Hosani, Omran"]
[Black "Hoffman, Alejandro"]
[Result "1/2-1/2"]
[ECO "C41"]
[WhiteElo "2215"]
[BlackElo "2390"]
[Annotator "RC"]
[PlyCount "62"]
[EventDate "2022.07.29"]
[EventType "team-tourn"]
[EventCountry "IND"]
[SourceTitle "playchess.com"]
[Source "ChessBase"]
[SourceQuality "1"]
[WhiteTeam "United Arab Emirates"]
[BlackTeam "Uruguay"]
[WhiteTeamCountry "UAE"]
[BlackTeamCountry "URU"]
[TimeControl "40/5400+30:1800+30"]

1. d4 {[%emt 0:00:03]} d6 {[%emt 0:00:18]} 2. e4 {[%emt 0:00:12]} Nf6 {[%emt 0:00:18]} 3. Nc3 {[%emt 0:00:21]} e5 {[%emt 0:00:41]} 4. Nf3 {[%emt 0:00:13]} Nbd7 {[%emt 0:01:21]} 5. Bc4 {[%emt 0:00:15]} Be7 {[%emt 0:00:08]} 6. O-O {[%emt 0:00:07]} Nb6 {[%emt 0:00:59]} 7. Bb3 {[%emt 0:04:42]} exd4 {[%emt 0:00:09]} 8. Qxd4 {[%emt 0:00:50]} O-O {[%emt 0:00:45]} 9. Bf4 {[%emt 0:01:16]} Bg4 {[%emt 0:06:15]} 10. Nd2 {[%emt 0:01:20]} Nfd7 {[%emt 0:06:26]} 11. a3 {[%emt 0:05:04]} Bf6 {[%emt 0:07:42]} 12. Qe3 {[%emt 0:00:22]} Re8 {[%emt 0:00:35]} 13. Rae1 {[%emt 0:06:26]} Nc5 {[%emt 0:06:46]} 14. Ba2 {[%emt 0:09:56]} Be6 {[%emt 0:01:51]} 15. Bxe6 {[%emt 0:01:04]} Nxe6 {[%emt 0:01:20]} 16. Bg3 {[%emt 0:01:04]} Bd4 {[%emt 0:01:54]} 17. Qd3 {[%emt 0:01:00]} h5 {[%emt 0:06:02]} 18. Nf3 {[%emt 0:02:06]} Bf6 {[%emt 0:01:08]} 19. e5 {[%emt 0:02:26]} dxe5 {[%emt 0:00:13]} 20. Bxe5 {[%emt 0:00:30]} Qxd3 {[%emt 0:00:36]} 21. cxd3 {[%emt 0:00:09]} Bxe5 {[%emt 0:00:16]} 22. Rxe5 {[%emt 0:05:27]} Nf4 {[%emt 0:07:24]} 23. Rxe8+ {[%emt 0:08:06]} Rxe8 {[%emt 0:00:08]} 24. Rd1 {[%emt 0:00:07]} Rd8 {[%emt 0:02:00]} 25. Ne1 {[%emt 0:02:18]} Nbd5 {[%emt 0:05:22]} 26. Kf1 {[%emt 0:03:09]} c5 {[%emt 0:02:56]} 27. g3 {[%emt 0:09:24]} Ne6 {[%emt 0:00:39]} 28. Nc2 {[%emt 0:01:57]} Kf8 {[%emt 0:04:07]} 29. d4 {[%emt 0:04:01]} Nxc3 {[%emt 0:03:35]} 30. bxc3 {[%emt 0:00:13]} cxd4 {[%emt 0:00:42]} 31. cxd4 {[%emt 0:01:03]} Nc7 {[%emt 0:01:03]} 1/2-1/2

[Event "44th Chess Olympiad Open 2022"]
[Site "Chennai"]
[Date "2022.08.09"]
[Round "11.29"]
[White "Mohamed Saeed Laily"]
[Black "Vazquez Facundo"]
[Result "0-1"]
[ECO "E03"]
[WhiteElo "2030"]
[BlackElo "2336"]
[Annotator "RC"]
[PlyCount "88"]
[EventDate "2022.07.29"]
[EventType "team-tourn"]
[EventCountry "IND"]
[SourceTitle "playchess.com"]
[Source "ChessBase"]
[SourceQuality "1"]
[WhiteTeam "United Arab Emirates"]
[BlackTeam "Uruguay"]
[WhiteTeamCountry "UAE"]
[BlackTeamCountry "URU"]
[TimeControl "40/5400+30:1800+30"]

1. d4 {[%emt 0:00:01]} Nf6 {[%emt 0:00:10]} 2. c4 {[%emt 0:00:07]} e6 {[%emt 0:00:14]} 3. Nf3 {[%emt 0:01:31]} d5 {[%emt 0:00:20]} 4. g3 {[%emt 0:00:08]} dxc4 {[%emt 0:01:38]} 5. Qa4+ {[%emt 0:01:43]} Nbd7 {[%emt 0:02:27]} 6. Qxc4 {[%emt 0:00:09]} a6 {[%emt 0:00:39]} 7. Bg2 {[%emt 0:01:33]} b5 {[%emt 0:03:11]} 8. Qc2 {[%emt 0:01:39]} Bb7 {[%emt 0:00:12]} 9. O-O {[%emt 0:00:38]} c5 {[%emt 0:04:12]} 10. Nbd2 {[%emt 0:25:22]} Rc8 {[%emt 0:06:09]} 11. dxc5 {[%emt 0:05:00]} Bxc5 {[%emt 0:00:36]} 12. Qd1 {[%emt 0:00:38]} O-O {[%emt 0:06:50]} 13. Nb3 {[%emt 0:00:07]} Bb6 {[%emt 0:00:58]} 14. Bf4 {[%emt 0:07:44]} Bd5 {[%emt 0:06:26]} 15. Ne5 {[%emt 0:13:31]} Bxg2 {[%emt 0:06:44]} 16. Kxg2 {[%emt 0:02:56]} Nd5 {[%emt 0:00:13]} 17. Nxd7 {[%emt 0:18:45]} Qxd7 {[%emt 0:00:14]} 18. Rc1 {[%emt 0:01:52]} Qb7 {[%emt 0:05:54]} 19. Kg1 {[%emt 0:00:09]} Nxf4 {[%emt 0:03:32]} 20. gxf4 {[%emt 0:00:01]} Rxc1 {[%emt 0:02:11]} 21. Qxc1 {[%emt 0:00:36]} Qe4 {[%emt 0:00:26]} 22. e3 {[%emt 0:01:20]} e5 {[%emt 0:08:49]} 23. fxe5 {[%emt 0:04:51]} Qxe5 {[%emt 0:00:27]} 24. Nd2 {[%emt 0:01:12]} Rd8 {[%emt 0:02:28]} 25. Rd1 {[%emt 0:01:31]} Qd5 {[%emt 0:01:28]} 26. Kf1 {[%emt 0:05:32]} Ba5 {[%emt 0:01:24]} 27. Ke2 {[%emt 0:00:19]} Qxa2 {[%emt 0:05:59]} 28. Qc2 {[%emt 0:00:22]} Bxd2 {[%emt 0:02:06]} 29. Rxd2 {[%emt 0:00:06]} Rxd2+ {[%emt 0:00:11]} 30. Qxd2 {[%emt 0:00:33]} Qc4+ {[%emt 0:00:30]} 31. Kf3 {[%emt 0:01:56]} h5 {[%emt 0:00:57]} 32. e4 {[%emt 0:01:40]} Qb3+ {[%emt 0:04:08]} 33. Kg2 {[%emt 0:00:36]} g6 {[%emt 0:02:36]} 34. Qd8+ {[%emt 0:01:08]} Kh7 {[%emt 0:02:39]} 35. Qd4 {[%emt 0:00:57]} a5 {[%emt 0:00:37]} 36. f4 {[%emt 0:00:20]} Qe6 {[%emt 0:01:43]} 37. h3 {[%emt 0:00:27]} a4 {[%emt 0:00:27]} 38. e5 {[%emt 0:01:21]} Qc4 {[%emt 0:00:34]} 39. Qd7 {[%emt 0:00:31]} Qe4+ {[%emt 0:01:20]} 40. Kg3 {[%emt 0:01:00]} h4+ {[%emt 0:00:27]} 41. Kh2 {[%emt 0:22:19]} Qxf4+ {[%emt 0:00:19]} 42. Kg2 {[%emt 0:00:05]} Qe4+ {[%emt 0:00:45]} 43. Kh2 {[%emt 0:03:20]} Qxe5+ {[%emt 0:00:08]} 44. Kh1 {[%emt 0:00:02]} Qf5 {[%emt 0:00:27]} 0-1

[Event "44th Chess Olympiad Open 2022"]
[Site "Chennai"]
[Date "2022.08.09"]
[Round "11.30"]
[White "Deac, Bogdan-Daniel"]
[Black "Alahakoon, Isuru"]
[Result "1-0"]
[ECO "E05"]
[WhiteElo "2692"]
[BlackElo "2000"]
[Annotator "TA"]
[PlyCount "55"]
[EventDate "2022.07.29"]
[EventType "team-tourn"]
[EventCountry "IND"]
[SourceTitle "playchess.com"]
[Source "ChessBase"]
[SourceQuality "1"]
[WhiteTeam "Romania"]
[BlackTeam "Sri Lanka"]
[WhiteTeamCountry "ROU"]
[BlackTeamCountry "SRI"]
[TimeControl "40/5400+30:1800+30"]

{[%evp 16,55,16,13,28,7,14,24,21,19,20,6,11,2,0,1,6,3,0,0,31,30,28,20,87,82,391,394,468,468,474,468,591,570,592,588,545,582,568,379,376,372]} 1. c4 {[%emt 0:00:03]} e6 {[%emt 0:02:07]} 2. g3 {[%emt 0:00:23]} d5 {[%emt 0:00:52]} 3. Bg2 {[%emt 0:00:05]} Nf6 {[%emt 0:00:30]} 4. Nf3 {[%emt 0:01:02][%cal Bg1f3,Bf3d4,Bd4b3,Bb3c5][%mdl 32]} Be7 {[%emt 0:03:47]} 5. d4 {[%emt 0:00:58]} O-O {[%emt 0:01:17]} 6. Qd3 {[%emt 0:01:40]} c5 {[%emt 0:03:51]} 7. O-O {[%emt 0:00:08]} cxd4 {[%emt 0:01:59]} 8. Nxd4 {[%emt 0:00:56]} dxc4 {[%emt 0:06:22]} 9. Qxc4 {[%emt 0:00:13]} e5 {[%emt 0:00:05] E05: Open Catalan: 5 Nf3 Be7.} 10. Nb3 {[%emt 0:01:11]} Nc6 {[%emt 0:12:13]} 11. Nc3 {[%emt 0:01:46]} Be6 {[%emt 0:06:04] White has an edge.} 12. Qb5 {[%emt 0:00:38]} Qc7 {[%emt 0:02:44]} 13. Nc5 {[%emt 0:08:30]} Bc8 {[%emt 0:04:51] [#] ...Nd4 is the strong threat.} 14. Nd3 $146 {[%emt 0:03:52]} ({Predecessor:} 14. Na6 Qd6 15. Qa4 Nd4 16. e3 Bd7 17. Qd1 Bg4 18. f3 Bxf3 19. Bxf3 Nxf3+ 20. Qxf3 Qxa6 {0-1 (62) Sparenberg,E (2140)-Sharma,D (2039) Hoogeveen 2016}) 14... a6 {[%emt 0:08:13]} 15. Qa4 {[%emt 0:01:49]} b5 {[%emt 0:06:27]} 16. Qd1 {[%emt 0:00:24][%cal Od3e5]} ({Of course not} 16. Nxb5 axb5 $1 17. Qxa8 Bb7 18. Qxb7 Qxb7 $17) 16... Rd8 {[%emt 0:01:45]} 17. Bg5 {[%emt 0:00:28]} Bb7 {[%emt 0:09:29]} 18. Bxf6 {[%emt 0:07:05]} Bxf6 {[%emt 0:00:33]} 19. Rc1 {[%emt 0:00:14]} (19. Nd5 $5 {[%cal Rd5c7]} Qd6 20. Rc1 $11) 19... Bg5 {[%emt 0:02:14] [#]} (19... e4 $11 {remains equal.} 20. Bxe4 Qe7) 20. e3 $1 $16 {[%emt 0:01:39] Strongly threatening Nd5.} Qb6 $2 {[%emt 0:08:14][%mdl 8192] Black cannot hold the game after this.} (20... Na5 $16 {is more resistant.}) 21. Nd5 $18 {[%emt 0:02:23]} Rxd5 {[%emt 0:03:59]} 22. Bxd5 {[%emt 0:00:10]} Rd8 {[%emt 0:00:08]} 23. Nc5 {[%emt 0:00:57]} ({Less strong is} 23. Qf3 Rxd5 24. Qxd5 Nd4 25. Rc8+ Bxc8 26. exd4 Qxd4 27. Qxe5 Qxe5 28. Nxe5 h6 $18) 23... Ba8 {[%emt 0:07:57]} 24. Qf3 {[%emt 0:01:25]} Bf6 {[%emt 0:03:32]} 25. Be4 {[%emt 0:00:40]} Be7 {[%emt 0:00:33]} 26. Nb3 {[%emt 0:00:57]} Rd6 {[%emt 0:01:16]} 27. Qf5 {[%emt 0:01:18]} g6 {[%emt 0:00:47]} 28. Qc8+ {[%emt 0:00:18] Weighted Error Value: White=0.10 (very precise) /Black=0.54} 1-0